bitfinex/quotes_ETHUSD_20250625
["timestamp","ask_amount","ask_price","bid_price","bid_amount"]
[1750854538449,4.13552742,2418.1,2417.7,0.7539]
[1750854538450,6.769,2418.0,2417.7,0.7539]
[1750854538648,6.769,2418.0,2417.9,0.2064]
[1750854538876,6.769,2418.0,2417.9,4.34218246]
[1750854539271,6.769,2418.0,2417.9,0.2064]
[1750854541292,10.2064,2418.4,2417.7,4.89003651]
[1750854541293,0.6751,2418.6,2417.7,0.7539]
[1750854541508,6.775,2418.6,2418.4,4.9599685]
[1750854541804,6.775,2418.6,2418.4,4.96004426]
[1750854542004,6.775,2418.6,2418.5,0.2064]
[1750854542399,6.775,2418.6,2418.5,4.34119429]
[1750854542605,6.775,2418.6,2418.5,0.2064]
[1750854543392,1.76,2418.9,2418.5,0.2064]
[1750854543598,7.46587519,2418.8,2418.5,0.2064]
[1750854544208,7.46587519,2418.8,2418.5,4.34115232]
[1750854545396,6.777,2418.8,2418.5,4.34115232]
[1750854545582,6.777,2418.8,2418.5,0.2064]
[1750854545783,10.91136621,2418.8,2418.4,0.8251]
[1750854546009,0.7919,2418.7,2418.3,0.2064]
[1750854546478,0.7919,2418.7,2418.4,4.13494528]
[1750854546677,0.7919,2418.7,2418.3,4.34146003]
[1750854548008,0.7919,2418.7,2418.4,4.13495674]
[1750854549211,6.9834,2418.8,2418.4,4.13495674]
[1750854549414,8.35320016,2418.8,2418.4,4.13495674]
[1750854549996,8.35320016,2418.8,2418.3,0.2064]
[1750854550208,12.48755704,2418.8,2418.3,4.34151404]
[1750854550507,12.48755704,2418.8,2418.3,0.2064]
[1750854550682,4.1344726,2418.7,2418.3,0.2064]
[1750854550878,1.92022744,2418.7,2418.3,4.34151294]
[1750854551215,1.92022744,2418.7,2418.4,4.13495543]
[1750854551414,0.2064,2418.8,2418.5,4.90928597]
[1750854551719,4.13403292,2419.0,2418.5,5.11569429]
[1750854551720,8.535,2418.6,2418.5,5.11569429]
[1750854552019,8.535,2418.6,2418.5,0.9809]
[1750854552802,1.76,2418.6,2418.5,0.9809]
[1750854553007,8.537,2418.6,2418.5,0.9809]
[1750854553310,8.537,2418.6,2418.5,5.11569429]
[1750854553512,8.537,2418.6,2418.5,0.9809]
[1750854554524,8.537,2418.6,2418.5,0.2064]
[1750854555321,9.80413337,2418.6,2418.3,4.95852792]
[1750854555501,9.80413337,2418.6,2418.4,0.2064]
[1750854556326,9.80413337,2418.6,2417.6,0.7684]
[1750854556527,0.2064,2418.4,2417.7,0.2064]
[1750854556704,4.34172194,2418.2,2417.7,4.34248159]
[1750854556908,1.76,2418.1,2417.7,4.34248159]
[1750854557105,6.775,2418.0,2417.8,4.13598967]
[1750854557613,6.775,2418.0,2417.7,4.34250373]
[1750854557815,6.775,2418.0,2417.8,4.13597004]
[1750854558628,6.775,2418.0,2417.8,4.13590496]
[1750854559619,6.775,2418.0,2417.7,4.34249716]
[1750854560019,6.775,2418.0,2417.8,4.13598716]
[1750854560219,6.775,2418.0,2417.7,4.34252992]
[1750854560539,6.775,2418.0,2417.8,4.13598846]
[1750854563707,6.775,2418.0,2417.7,0.2064]
[1750854563908,6.775,2418.0,2417.7,4.34255877]
[1750854565404,8.21519723,2418.0,2417.7,4.34255877]
[1750854566094,8.21519723,2418.0,2417.7,0.2064]
[1750854566298,8.21519723,2418.0,2417.7,4.34255973]
[1750854566730,8.21519723,2418.0,2417.7,0.2064]
[1750854566897,8.21519723,2418.0,2417.5,0.2196526]
[1750854567103,0.2064,2417.8,2417.5,0.2196526]
[1750854567322,4.34241377,2417.8,2417.5,0.2196526]
[1750854567529,6.765,2417.7,2417.5,0.2196526]
[1750854567716,1.76,2417.6,2417.5,0.2196526]
[1750854569532,16.69703355,2417.6,2417.5,0.2196526]
[1750854569736,19.87046244,2417.6,2417.5,0.2196526]
[1750854570533,29.79146244,2417.6,2417.5,0.2196526]
[1750854571342,30.34146244,2417.6,2417.5,0.2196526]
[1750854573811,18.03146244,2417.6,2417.5,0.2196526]
[1750854574014,18.471,2417.6,2417.5,0.2196526]
[1750854574232,18.472,2417.6,2417.5,0.2196526]
[1750854574615,11.69,2417.6,2417.5,0.9959526]
[1750854574931,18.473,2417.6,2417.5,5.13245725]
[1750854575320,18.473,2417.6,2417.5,0.9959526]
[1750854579632,18.473,2417.6,2417.5,1.2023526]
[1750854580508,0.21584102,2419.3,2417.8,4.13599139]
[1750854580708,0.20476921,2420.0,2417.8,4.13599139]
[1750854580709,4.13489605,2418.5,2417.9,4.13572752]
[1750854581028,4.13521827,2418.3,2417.8,0.8286]
[1750854581227,8.587,2418.2,2417.8,4.96458948]
[1750854581406,9.52576,2418.2,2417.8,4.96458948]
[1750854582637,9.52576,2418.2,2417.9,4.1358029]
[1750854583341,9.52576,2418.2,2417.9,4.13575274]
[1750854583716,9.52576,2418.2,2417.8,4.96450083]
[1750854584122,9.52576,2418.2,2417.9,4.13578938]
[1750854586344,9.52576,2418.2,2417.8,4.96447793]
[1750854586646,9.52576,2418.2,2417.9,4.13580679]
[1750854587034,9.52576,2418.2,2418.0,4.13563605]
[1750854587236,8.587,2418.2,2418.0,4.13563605]
[1750854587443,4.13471044,2418.6,2418.1,4.13547826]
[1750854587748,8.582,2418.5,2418.2,4.13525229]
[1750854588122,14.88596018,2418.7,2418.2,4.13525229]
[1750854588327,1.769,2418.4,2417.9,4.13575205]
[1750854588534,6.812,2418.3,2417.9,4.13575205]
[1750854588718,6.812,2418.3,2418.0,4.13554841]
[1750854590247,6.812,2418.3,2417.9,4.13574881]
[1750854590811,12.21876639,2418.3,2417.8,4.96452277]
[1750854591012,12.42516639,2418.3,2417.8,5.17092277]
[1750854591459,4.13531636,2418.2,2417.8,1.035]
[1750854591694,4.13531636,2418.2,2417.8,0.2064]
[1750854592432,13.17672729,2418.3,2417.8,4.34237486]
[1750854592633,1.90807652,2418.2,2417.8,4.34237486]
[1750854595844,1.90807652,2418.2,2417.9,4.13581253]
[1750854596667,1.90807652,2418.2,2417.8,4.34230075]
[1750854596866,8.571,2418.1,2417.9,0.7602]
[1750854597875,1.769,2418.1,2418.0,4.13564168]
[1750854598182,8.57,2418.1,2418.0,4.34204168]
[1750854598660,1.769,2418.3,2418.1,4.13540823]
[1750854599037,6.804,2418.2,2418.1,4.13540823]
[1750854599548,6.804,2418.2,2418.1,4.34180823]
[1750854599866,6.804,2418.2,2418.1,0.2064]
[1750854602147,6.798,2418.2,2418.1,0.2064]
[1750854603268,0.2064,2418.5,2418.1,4.34185588]
[1750854603471,6.798,2418.4,2418.2,4.13515318]
[1750854603664,6.798,2418.4,2418.3,0.2064]
[1750854603835,6.798,2418.4,2418.3,5.10953625]
[1750854604453,6.798,2418.4,2418.3,0.9744]
[1750854604642,6.798,2418.4,2418.3,0.2064]
[1750854605074,6.798,2418.4,2418.1,0.8121]
[1750854605274,6.798,2418.4,2418.2,0.2064]
[1750854605972,12.22480897,2418.4,2418.2,0.2064]
[1750854606144,12.22480897,2418.4,2417.9,4.92843028]
[1750854606469,12.22480897,2418.4,2418.0,0.2064]
[1750854606772,8.08982179,2418.4,2418.0,4.34203486]
[1750854610882,12.22479216,2418.4,2418.0,4.34203486]
[1750854611179,12.22486517,2418.4,2418.0,0.2064]
[1750854611858,12.22486517,2418.4,2418.0,4.34203972]
[1750854612057,8.08982179,2418.4,2418.0,4.34203972]
[1750854612573,8.08982179,2418.4,2418.1,4.13547455]
[1750854612780,6.798,2418.4,2418.1,4.13547455]
[1750854612979,6.798,2418.4,2418.0,4.34193775]
[1750854613790,10.93298422,2418.4,2418.0,0.2064]
[1750854614474,8.563,2418.3,2418.1,4.13545347]
[1750854614654,8.562,2418.2,2418.1,4.13547826]
[1750854617567,8.562,2418.2,2418.0,4.34195433]
[1750854617763,8.562,2418.2,2418.1,4.13547826]
[1750854618759,8.562,2418.2,2418.0,0.2064]
[1750854618963,8.562,2418.2,2418.1,4.13547826]
[1750854620880,8.562,2418.2,2418.0,4.34195058]
[1750854621082,8.562,2418.2,2418.0,0.2064]
[1750854621468,8.512,2418.2,2418.0,4.34196738]
[1750854621675,6.776,2418.1,2418.0,5.26901497]
[1750854622192,10.91147826,2418.1,2417.8,0.2064]
[1750854622572,4.88708246,2418.0,2417.5,5.17576177]
[1750854622876,4.88708246,2418.0,2417.7,0.2064]
[1750854623404,0.2064,2417.7,2417.5,0.2196526]
[1750854623718,6.781,2417.6,2417.5,0.2196526]
[1750854624710,0.7514,2418.0,2417.6,4.13633355]
[1750854624868,1.779,2417.7,2417.6,4.34273355]
[1750854625574,0.2064,2418.0,2417.7,0.7791]
[1750854625910,8.558,2417.9,2417.7,5.44931828]
[1750854626097,8.558,2417.9,2417.7,1.31324862]
[1750854626408,6.781,2417.8,2417.7,1.31324862]
[1750854627202,6.781,2417.8,2417.7,0.7791]
[1750854628024,6.781,2417.8,2417.6,0.2064]
[1750854630299,6.781,2417.8,2417.6,4.34271389]
[1750854630609,6.781,2417.8,2417.7,4.13616246]
[1750854630817,6.781,2417.8,2417.6,4.34265877]
[1750854631312,0.2064,2418.0,2417.6,1.15732183]
[1750854631615,6.775,2417.9,2417.8,0.2064]
[1750854634322,6.775,2417.9,2417.5,1.0299526]
[1750854634323,10.91090476,2417.9,2417.5,1.0299526]
[1750854634484,10.91090476,2417.9,2417.7,0.2064]
[1750854634896,6.775,2417.9,2417.7,0.2064]
[1750854635911,0.2064,2418.1,2417.7,4.34253416]
[1750854636121,8.533,2418.0,2417.8,4.13598248]
[1750854636631,8.533,2418.0,2417.7,4.34244877]
[1750854638620,1.763,2418.0,2417.9,4.13578111]
[1750854638783,8.528,2418.0,2417.9,4.34218111]
[1750854639210,8.528,2418.0,2417.9,0.2064]
[1750854642027,8.528,2418.0,2417.9,4.34222033]
[1750854643313,0.8237,2418.4,2418.1,4.13546859]
[1750854643514,8.526,2418.3,2418.0,4.1355972]
[1750854643689,6.763,2418.2,2418.1,0.2064]
[1750854644030,6.763,2418.2,2418.1,4.34187826]
[1750854644218,6.763,2418.2,2418.1,0.2064]
[1750854644591,6.763,2418.2,2418.1,4.34187826]
[1750854644887,6.763,2418.2,2418.1,0.2064]
[1750854645139,6.763,2418.2,2418.1,4.34187826]
[1750854646121,6.763,2418.2,2418.1,0.2064]
[1750854647197,6.763,2418.2,2418.1,4.34187826]
[1750854647423,6.763,2418.2,2418.1,0.2064]
[1750854649855,8.525,2418.2,2418.1,0.2064]
[1750854652962,9.352,2418.2,2417.8,4.13584751]
[1750854653169,9.352,2418.2,2417.9,0.2064]
[1750854654522,14.32161193,2418.2,2417.6,4.94410567]
[1750854654721,14.32161193,2418.2,2417.5,0.2196526]
[1750854654722,4.13570668,2418.0,2417.5,0.2196526]
[1750854654926,6.9684,2417.9,2417.6,4.13625522]
[1750854655528,6.9684,2417.9,2417.6,4.13625728]
[1750854655728,6.9684,2417.9,2417.7,4.13608718]
[1750854656127,6.9684,2417.9,2417.8,4.13599139]
[1750854657836,6.9684,2417.9,2417.7,4.13606753]
[1750854658037,6.9684,2417.9,2417.8,4.13599139]
[1750854658238,6.762,2417.9,2417.8,4.13599139]
[1750854658561,0.2064,2418.1,2417.9,4.13572734]
[1750854658866,0.2064,2418.2,2418.0,4.13564929]
[1750854659072,8.525,2418.1,2418.0,4.13564929]
[1750854659362,1.763,2418.1,2418.0,4.13564929]
[1750854659524,8.525,2418.1,2418.0,4.13564929]
[1750854659728,8.525,2418.1,2417.9,4.13573089]
[1750854660261,0.2064,2418.2,2417.9,4.13573089]
[1750854660568,6.762,2418.0,2417.8,4.34229895]
[1750854660773,6.762,2418.0,2417.8,0.2064]
[1750854661068,6.762,2418.0,2417.7,4.13607355]
[1750854661069,6.762,2418.0,2417.7,4.34254555]
[1750854661375,7.5165,2418.0,2417.7,4.34254555]
[1750854661670,7.5165,2418.0,2417.7,4.13614555]
[1750854661873,7.7229,2418.0,2417.7,4.13614555]
[1750854662859,7.7229,2418.0,2417.8,4.13596912]
[1750854663462,7.7229,2418.0,2417.9,4.13582033]
[1750854663764,6.9684,2418.0,2417.9,4.13582033]
[1750854664133,0.2064,2418.0,2417.9,4.13582033]
[1750854664335,0.2064,2418.2,2418.0,4.13553018]
[1750854664545,0.2064,2418.2,2418.1,4.13547826]
[1750854664862,8.52,2418.2,2418.1,7.13547826]
[1750854665661,0.2064,2418.4,2418.1,3.0]
[1750854665859,1.9644,2418.7,2418.2,0.7814]
[1750854666085,8.52,2418.7,2418.3,4.71955362]
[1750854666382,9.3339,2418.7,2418.3,4.34139234]
[1750854666549,13.46837468,2418.7,2418.3,3.2064]
[1750854666863,4.13493091,2418.5,2418.3,3.0]
[1750854667044,4.34133091,2418.5,2418.3,3.0]
[1750854667438,4.95886526,2418.4,2418.3,3.0]
[1750854667631,6.47539179,2418.4,2418.3,3.0]
[1750854668438,13.24039179,2418.4,2418.3,3.0]
[1750854671865,9.10542653,2418.4,2418.3,3.0]
[1750854672359,6.765,2418.4,2418.3,3.0]
[1750854672536,8.522,2418.4,2418.3,3.0]
[1750854676333,8.7284,2418.4,2418.3,3.0]
[1750854677469,12.86336526,2418.4,2418.3,3.0]
[1750854678967,22.86336526,2418.4,2418.3,3.0]
[1750854679172,26.443712,2418.4,2418.3,3.0]
[1750854681955,26.441712,2418.4,2418.3,3.0]
[1750854685602,14.34136526,2418.4,2418.3,3.0]
[1750854685896,22.86136526,2418.4,2418.3,3.0]
[1750854691200,22.81136526,2418.4,2418.3,3.0]
[1750854699681,18.6764,2418.4,2418.3,3.0]
[1750854701110,22.81136526,2418.4,2418.3,3.0]
[1750854704510,32.17935956,2418.4,2418.3,3.0]
[1750854705280,26.31947142,2418.4,2418.3,3.0]
[1750854716227,25.50597142,2418.4,2418.3,3.0]
[1750854716611,22.81136526,2418.4,2418.3,3.0]
[1750854720302,18.6764,2418.4,2418.3,3.0]
[1750854720806,22.81136526,2418.4,2418.3,3.0]
[1750854722628,18.6764,2418.4,2418.3,3.0]
[1750854723207,18.6724,2418.4,2418.3,3.0]
[1750854723732,22.80736526,2418.4,2418.3,3.0]
[1750854725836,25.58045094,2418.4,2418.3,3.0]
[1750854728938,26.92695094,2418.4,2418.3,3.0]
[1750854731732,32.78683908,2418.4,2418.3,3.0]
[1750854731909,42.70883908,2418.4,2418.3,3.0]
[1750854732509,43.07883908,2418.4,2418.3,3.0]
[1750854737309,43.07883908,2418.4,2418.3,1.875]
[1750854737511,4.13628207,2417.7,2417.5,0.9741526]
[1750854737717,12.64933355,2417.6,2417.5,0.2196526]
[1750854742916,22.64933355,2417.6,2417.5,0.2196526]
[1750854745643,23.47773355,2417.6,2417.5,0.2196526]
[1750854749120,24.02773355,2417.6,2417.5,0.2196526]
[1750854749450,37.05501233,2417.6,2417.5,0.2196526]
[1750854749656,32.70401233,2417.6,2417.5,0.2196526]
[1750854751554,37.05501233,2417.6,2417.5,0.2196526]
[1750854752032,4.13804518,2416.6,2416.5,0.8116]
[1750854752238,12.65104518,2416.6,2416.5,0.8116]
[1750854752454,4.13856799,2416.3,2416.0,0.8329]
[1750854752632,6.757,2416.2,2416.0,0.8329]
[1750854752836,8.513,2416.1,2416.0,0.8329]
[1750854754352,12.65190153,2416.1,2416.0,0.8329]
[1750854754740,4.13844179,2416.4,2416.0,0.8329]
[1750854754939,8.513,2416.3,2416.0,4.9719461]
[1750854755144,8.513,2416.2,2416.1,0.8317]
[1750854755749,4.13840382,2416.4,2416.1,0.8317]
[1750854755950,8.513,2416.3,2416.1,0.8317]
[1750854756684,8.512,2416.2,2415.7,0.7814]
[1750854756870,4.13907284,2416.0,2415.7,0.7814]
[1750854757052,6.758,2415.9,2415.7,0.7814]
[1750854757358,10.8972567,2415.9,2415.7,0.7814]
[1750854757556,4.13941551,2415.8,2415.7,0.7814]
[1750854758155,14.13902859,2416.1,2415.7,0.7814]
[1750854758356,1.754,2415.8,2415.7,0.7814]
[1750854758567,8.512,2415.8,2415.7,0.7814]
[1750854759662,10.0,2415.9,2415.7,0.7814]
[1750854759864,8.514,2415.8,2415.7,0.7814]
[1750854760237,14.13925795,2415.9,2415.7,0.7814]
[1750854760467,8.514,2415.8,2415.7,0.7814]
[1750854760874,10.0,2415.9,2415.7,0.7814]
[1750854761076,1.755,2416.0,2415.9,4.13915804]
[1750854761380,4.13825734,2416.5,2416.1,0.786]
[1750854761576,8.514,2416.4,2416.1,0.786]
[1750854762051,4.13833128,2416.5,2416.1,0.786]
[1750854762252,18.514,2416.4,2416.1,0.786]
[1750854762463,8.514,2416.3,2416.1,0.786]
[1750854762647,8.514,2416.2,2416.1,0.786]
[1750854763681,10.0,2416.5,2416.1,4.92490153]
[1750854763986,14.13797699,2416.7,2416.4,0.786]
[1750854764181,8.514,2416.6,2416.4,0.786]
[1750854764544,14.13797699,2416.7,2416.4,0.786]
[1750854764749,8.514,2416.6,2416.4,0.786]
[1750854765073,8.514,2416.5,2416.4,0.786]
[1750854768283,8.514,2416.5,2416.1,4.13881424]
[1750854768284,8.514,2416.5,2416.2,0.7625]
[1750854768847,12.65224934,2416.5,2416.2,0.7625]
[1750854769048,14.3313373,2416.5,2416.2,0.7625]
[1750854769254,4.13840935,2416.4,2416.2,0.7625]
[1750854769479,6.759,2416.3,2416.2,0.7625]
[1750854769871,6.759,2416.3,2415.9,4.13914517]
[1750854770073,6.759,2416.3,2415.9,4.91291414]
[1750854770652,4.13897972,2416.1,2415.9,0.7737]
[1750854770972,8.514,2416.0,2415.9,0.7737]
[1750854772184,8.514,2416.0,2415.7,5.11919947]
[1750854772579,8.514,2416.0,2415.7,0.9797]
[1750854772776,12.65318172,2416.0,2415.7,0.9797]
[1750854772973,4.13926184,2415.9,2415.7,0.2064]
[1750854773174,6.761,2415.8,2415.7,0.2064]
[1750854773886,0.2064,2415.7,2415.5,4.9089164]
[1750854774080,6.761,2415.6,2415.5,4.9089164]
[1750854774282,6.761,2415.6,2415.5,4.90892962]
[1750854775595,6.761,2415.6,2415.5,5.11532962]
[1750854775886,1.755,2415.7,2415.6,4.13962419]
[1750854776091,8.515,2415.7,2415.6,4.90512419]
[1750854776486,0.2064,2415.9,2415.6,4.90512419]
[1750854776790,8.515,2415.8,2415.6,0.9719]
[1750854776994,8.515,2415.8,2415.6,5.11165381]
[1750854777492,8.515,2415.8,2415.6,0.9719]
[1750854777681,8.515,2415.8,2415.6,5.11156458]
[1750854777856,4.34539617,2416.1,2415.7,4.13958686]
[1750854778061,8.515,2416.0,2415.7,4.13958686]
[1750854778458,0.2064,2416.1,2415.8,5.83681916]
[1750854778664,6.761,2416.0,2415.9,5.11794417]
[1750854778874,1.755,2416.1,2416.0,4.13902489]
[1750854779063,8.516,2416.1,2416.0,4.13902489]
[1750854779270,8.516,2416.1,2415.9,0.9787]
[1750854779472,9.78145647,2416.1,2415.9,0.9787]
[1750854779672,9.78145647,2416.1,2415.9,0.7723]
[1750854779893,9.78145647,2416.1,2415.9,4.9115394]
[1750854780093,8.516,2416.1,2415.9,4.9115394]
[1750854780389,8.516,2416.1,2415.9,4.91144885]
[1750854780590,1.9614,2416.2,2416.1,0.7977]
[1750854780795,8.7234,2416.2,2416.1,0.7977]
[1750854780992,8.7234,2416.2,2415.9,0.7963]
[1750854781204,14.56225777,2416.2,2415.9,0.7963]
[1750854781716,14.56225777,2416.2,2415.7,1.0027]
[1750854781717,10.42344883,2416.2,2415.7,1.0027]
[1750854781891,6.767,2416.1,2415.8,4.13938579]
[1750854782199,10.90593522,2416.1,2415.7,1.0027]
[1750854782694,4.1390868,2416.0,2415.7,1.0027]
[1750854782892,5.22993075,2415.9,2415.4,4.8954195]
[1750854783096,6.767,2415.8,2415.5,0.2064]
[1750854783296,1.755,2415.7,2415.5,0.2064]
[1750854783490,1.755,2415.7,2415.4,5.10180097]
[1750854784468,1.755,2415.7,2415.5,4.13991646]
[1750854784798,1.755,2415.7,2415.4,5.10180987]
[1750854786608,1.755,2415.7,2415.4,5.10189242]
[1750854787072,1.755,2415.7,2415.5,4.1399235]
[1750854787275,1.755,2415.7,2415.5,4.13983829]
[1750854787497,10.2064,2416.0,2415.6,0.7964]
[1750854787698,8.518,2415.9,2415.7,4.13958686]
[1750854788003,8.518,2415.9,2415.8,4.93581551]
[1750854788304,1.756,2416.3,2416.0,0.8312]
[1750854788468,1.756,2416.4,2416.3,4.13855895]
[1750854788790,1.756,2416.8,2416.6,4.92772823]
[1750854788989,1.756,2416.8,2416.6,5.13412823]
[1750854789211,8.528,2416.8,2416.6,0.9961]
[1750854790105,1.756,2416.8,2416.7,4.13787396]
[1750854790402,9.93,2417.1,2416.8,0.8252]
[1750854790607,6.772,2417.0,2416.9,4.13753154]
[1750854790811,6.772,2417.0,2416.8,4.96281249]
[1750854790999,6.772,2417.0,2416.9,0.2064]
[1750854791309,6.772,2417.0,2416.9,4.34393154]
[1750854791505,6.772,2417.0,2416.9,0.2064]
[1750854792690,6.772,2417.0,2416.8,5.16927696]
[1750854792878,6.772,2417.0,2416.8,1.0316]
[1750854793274,4.13736759,2417.0,2416.8,0.2064]
[1750854793506,10.90653154,2416.9,2416.8,0.2064]
[1750854793709,10.90653154,2416.9,2416.2,0.821]
[1750854793710,11.69613154,2416.9,2416.2,0.821]
[1750854794006,11.90253154,2416.9,2416.4,0.2064]
[1750854794177,4.13787143,2416.8,2416.2,4.95962442]
[1750854794376,1.9624,2416.7,2416.3,4.13850259]
[1750854794579,6.776,2416.6,2416.4,4.13835016]
[1750854794809,6.776,2416.6,2416.3,4.13843724]
[1750854795118,6.776,2416.6,2416.4,4.13837693]
[1750854795280,6.776,2416.6,2416.3,4.13851519]
[1750854796195,8.532,2416.5,2416.3,4.13851519]
[1750854796578,8.532,2416.5,2416.4,4.13838768]
[1750854797614,8.532,2416.5,2416.3,4.13848133]
[1750854798033,8.532,2416.5,2416.3,4.13847554]
[1750854798194,8.532,2416.5,2416.4,4.13838768]
[1750854799126,0.2064,2416.7,2416.5,4.13820864]
[1750854799300,8.525,2416.6,2416.5,4.13820864]
[1750854799712,0.2064,2416.9,2416.5,4.95290864]
[1750854799902,6.769,2416.8,2416.6,4.13803418]
[1750854800923,6.769,2416.8,2416.5,4.95282065]
[1750854801628,6.769,2416.8,2416.4,4.34470614]
[1750854802135,6.769,2416.8,2416.5,4.13818967]
[1750854802936,6.769,2416.8,2416.4,4.34469778]
[1750854803636,6.769,2416.8,2416.5,4.13819584]
[1750854803799,6.769,2416.8,2416.5,4.13809567]
[1750854806312,0.2064,2416.9,2416.6,4.13802874]
[1750854806516,6.761,2416.8,2416.7,4.34426653]
[1750854807318,9.93,2417.1,2416.7,0.2064]
[1750854807522,8.517,2417.0,2416.7,0.2064]
[1750854807728,8.518,2416.9,2416.7,0.2064]
[1750854808129,8.518,2416.9,2416.7,4.34426337]
[1750854808339,9.93,2417.1,2416.9,4.13745364]
[1750854808492,10.0,2417.3,2417.1,4.13704083]
[1750854808493,1.756,2417.3,2417.1,4.13704083]
[1750854808698,6.761,2417.2,2417.1,4.13704083]
[1750854808931,1.756,2417.3,2417.2,0.2064]
[1750854809129,8.517,2417.3,2417.2,0.2064]
[1750854809302,8.517,2417.3,2417.2,4.34341803]
[1750854809512,1.756,2417.3,2417.2,4.34341803]
[1750854809739,6.765,2417.5,2417.4,0.777]
[1750854810044,6.765,2417.5,2417.4,4.91367576]
[1750854810225,6.765,2417.5,2417.4,0.777]
[1750854810408,6.765,2417.5,2417.4,0.2064]
[1750854811307,1.756,2417.7,2417.4,0.2064]
[1750854811516,6.763,2417.6,2417.4,0.2064]
[1750854811897,6.763,2417.6,2417.4,4.34306216]
[1750854813523,6.76,2417.5,2417.4,4.34306216]
[1750854814515,1.756,2417.6,2417.4,4.34306216]
[1750854814829,6.76,2417.5,2417.4,4.34306216]
[1750854816130,6.76,2417.5,2417.4,4.34307576]
[1750854816937,6.76,2417.5,2417.4,5.12147576]
[1750854818022,6.76,2417.5,2417.4,0.2064]
[1750854818538,6.76,2417.5,2417.4,4.34307576]
[1750854819243,7.6116,2417.5,2417.2,0.7799]
[1750854819436,7.6116,2417.5,2417.3,4.13681954]
[1750854819838,6.76,2417.5,2417.3,4.13681954]
[1750854820210,6.76,2417.5,2417.4,4.13667576]
[1750854823450,6.76,2417.5,2417.4,4.34307576]
[1750854825252,9.927,2418.0,2417.4,0.2064]
[1750854825426,8.511,2417.9,2417.6,4.13627934]
[1750854825749,8.511,2417.9,2417.8,0.2064]
[1750854827548,1.754,2417.9,2417.8,0.2064]
[1750854827741,8.511,2417.9,2417.8,0.2064]
[1750854829827,8.511,2417.9,2417.8,4.34239139]
[1750854832570,8.511,2417.9,2417.8,0.2064]
[1750854832962,6.756,2417.9,2417.8,0.2064]
[1750854834865,6.70690259,2418.6,2418.0,4.13564929]
[1750854835034,6.9624,2418.5,2418.1,4.13534166]
[1750854835363,6.9624,2418.5,2418.1,4.34174166]
[1750854835525,6.9624,2418.5,2418.2,4.1353004]
[1750854836865,6.9624,2418.5,2418.3,4.13510679]
[1750854837166,1.754,2418.6,2418.4,4.13496526]
[1750854837337,1.754,2418.6,2418.4,4.13480657]
[1750854837338,6.755,2418.5,2418.4,4.13480657]
[1750854838161,0.2064,2418.7,2418.4,0.8155]
[1750854838327,6.755,2418.6,2418.5,4.13471886]
[1750854838528,6.755,2418.6,2418.5,4.34111886]
[1750854838753,1.9604,2418.9,2418.6,4.1345277]
[1750854839027,6.755,2418.8,2418.5,0.2064]
[1750854839535,6.755,2418.8,2418.5,4.3411586]
[1750854839739,6.755,2418.8,2418.5,0.2064]
[1750854840431,10.88930759,2418.8,2418.5,0.2064]
[1750854840628,0.8048,2418.7,2418.1,0.7939]
[1750854840944,0.2064,2418.6,2418.3,4.13513058]
[1750854841147,6.761,2418.5,2418.3,4.13513058]
[1750854841351,6.761,2418.5,2418.1,0.7939]
[1750854841552,6.761,2418.5,2418.4,0.2064]
[1750854842233,7.5658,2418.5,2418.1,0.2064]
[1750854842535,4.13521876,2418.3,2417.8,4.13589498]
[1750854842734,10.90031866,2418.2,2417.9,0.2064]
[1750854842961,6.765,2418.2,2417.9,0.2064]
[1750854843660,10.90031315,2418.2,2417.9,0.2064]
[1750854843976,4.13590086,2417.9,2417.5,0.7939]
[1750854844138,6.769,2417.8,2417.7,0.2064]
[1750854844733,6.769,2417.8,2417.2,4.13691272]
[1750854844734,10.90499139,2417.8,2417.3,4.93064254]
[1750854845064,4.13616844,2417.7,2417.5,0.2064]
[1750854845433,4.94846844,2417.7,2417.2,4.13693799]
[1750854845633,4.13637393,2417.6,2417.3,0.2064]
[1750854845878,6.77,2417.5,2417.3,0.2064]
[1750854846236,6.77,2417.5,2417.1,0.78]
[1750854846567,6.77,2417.5,2417.2,0.2064]
[1750854846929,6.77,2417.5,2417.3,4.13673908]
[1750854847130,1.754,2417.9,2417.4,4.13667576]
[1750854847131,4.93860935,2417.9,2417.4,4.13667576]
[1750854847357,8.523,2417.8,2417.4,0.2064]
[1750854847665,12.6590081,2417.8,2417.4,0.2064]
[1750854848032,4.13650465,2417.5,2417.4,0.2064]
[1750854848237,6.773,2417.5,2417.1,0.78]
[1750854848557,6.773,2417.5,2417.1,4.91717176]
[1750854848753,6.773,2417.5,2417.1,0.78]
[1750854849438,4.13668433,2417.4,2416.9,4.137465]
[1750854849640,1.767,2417.3,2417.0,4.13734102]
[1750854849840,6.778,2417.2,2417.0,4.13734102]
[1750854851173,6.778,2417.2,2416.9,5.77267374]
[1750854851980,6.778,2417.2,2417.0,4.13721935]
[1750854852577,6.778,2417.2,2417.1,4.13718919]
[1750854852742,6.778,2417.2,2417.0,4.13727477]
[1750854853267,6.778,2417.2,2417.1,4.13718919]
[1750854853569,4.1361653,2417.7,2417.3,0.7953]
[1750854853763,8.541,2417.6,2417.3,0.7953]
[1750854854293,4.13671829,2417.4,2417.0,0.7953]
[1750854854437,0.7606,2417.4,2417.0,4.93265955]
[1750854854639,4.89733196,2417.4,2417.0,0.7953]
[1750854854873,0.7606,2417.4,2417.0,4.93262153]
[1750854855245,4.89731056,2417.4,2417.0,0.7953]
[1750854855546,4.89731056,2417.4,2416.9,4.13753145]